[Event "Titled Tuesday Blitz August 22 Early 2023"]
[White "dodoucb"]
[Black "ajedrez-facil"]
[WhiteElo "2459"]
[BlackElo "2224"]
[Result "1-0"]
[Round "2"]
[TimeControl "180+1"]
[Date "2023.08.22"]
[WhiteClock "0:00:41"]
[BlackClock "0:00:07"]
[Board "233"]

1. d4 {[%clk 0:02:59]}  d5 {[%clk 0:01:09]} 2. c4 {[%clk 0:02:21]}  c6 {[%clk 0:01:07]} 3. Nf3 {[%clk 0:02:21]}  Nf6 {[%clk 0:01:06]} 4. Nc3 {[%clk 0:02:21]}  dxc4 {[%clk 0:01:04]} 5. a4 {[%clk 0:02:21]}  Bf5 {[%clk 0:01:04]} 6. e3 {[%clk 0:02:20]}  e6 {[%clk 0:01:04]} 7. Bxc4 {[%clk 0:02:20]}  Nbd7 {[%clk 0:01:04]} 8. O-O {[%clk 0:02:20]}  Bd6 {[%clk 0:01:04]} 9. Qe2 {[%clk 0:02:11]}  Ne4 {[%clk 0:01:04]} 10. Nxe4 {[%clk 0:02:09]}  Bxe4 {[%clk 0:01:05]} 11. Nd2 {[%clk 0:02:10]}  Bg6 {[%clk 0:01:04]} 12. a5 {[%clk 0:02:07]}  Qc7 {[%clk 0:01:03]} 13. h3 {[%clk 0:02:06]}  O-O {[%clk 0:00:59]} 14. b3 {[%clk 0:02:03]}  b5 {[%clk 0:00:59]} 15. Bd3 {[%clk 0:02:02]}  Bxd3 {[%clk 0:00:55]} 16. Qxd3 {[%clk 0:02:03]}  a6 {[%clk 0:00:53]} 17. Bb2 {[%clk 0:02:03]}  Rac8 {[%clk 0:00:50]} 18. Rfc1 {[%clk 0:02:02]}  Qa7 {[%clk 0:00:49]} 19. Qe4 {[%clk 0:01:46]}  c5 {[%clk 0:00:47]} 20. Qh4 {[%clk 0:01:45]}  cxd4 {[%clk 0:00:40]} 21. Bxd4 {[%clk 0:01:44]}  Bc5 {[%clk 0:00:40]} 22. Bb2 {[%clk 0:01:40]}  Rfd8 {[%clk 0:00:34]} 23. Ne4 {[%clk 0:01:27]}  Bf8 {[%clk 0:00:21]} 24. Bd4 {[%clk 0:01:19]}  Qb7 {[%clk 0:00:19]} 25. Rd1 {[%clk 0:01:11]}  Qc6 {[%clk 0:00:13]} 26. Ng5 {[%clk 0:01:01]}  h6 {[%clk 0:00:12]} 27. Ne4 {[%clk 0:01:01]}  e5 {[%clk 0:00:10]} 28. Bb6 {[%clk 0:01:00]}  Re8 {[%clk 0:00:10]} 29. Kh2 {[%clk 0:00:54]}  g5 {[%clk 0:00:10]} 30. Qg4 {[%clk 0:00:51]}  Nxb6 {[%clk 0:00:11]} 31. axb6 {[%clk 0:00:50]}  Qxb6 {[%clk 0:00:12]} 32. Qf5 {[%clk 0:00:45]}  Bg7 {[%clk 0:00:10]} 33. Nd6 {[%clk 0:00:43]}  Red8 {[%clk 0:00:07]} 34. Qxf7+ {[%clk 0:00:41]} 1-0


[Site "https://www.chess.com"]

[Event "Titled Tuesday Blitz August 22 Early 2023"]
[White "NLLO777"]
[Black "Winslow, Elliott"]
[BlackFideId "2002523"]
[WhiteElo "2458"]
[BlackElo "2217"]
[Result "1-0"]
[Round "2"]
[TimeControl "180+1"]
[Date "2023.08.22"]
[WhiteClock "0:00:03"]
[BlackClock "0:00:00"]
[Board "236"]

1. d4 {[%clk 0:03:00]}  Nf6 {[%clk 0:02:59]} 2. c4 {[%clk 0:03:01]}  g6 {[%clk 0:02:57]} 3. Nf3 {[%clk 0:03:01]}  Bg7 {[%clk 0:02:56]} 4. g3 {[%clk 0:03:02]}  O-O {[%clk 0:02:55]} 5. Bg2 {[%clk 0:03:03]}  d6 {[%clk 0:02:56]} 6. O-O {[%clk 0:03:04]}  Nbd7 {[%clk 0:02:56]} 7. Nc3 {[%clk 0:03:04]}  e5 {[%clk 0:02:56]} 8. e4 {[%clk 0:03:05]}  c6 {[%clk 0:02:54]} 9. h3 {[%clk 0:03:05]}  Re8 {[%clk 0:02:51]} 10. Be3 {[%clk 0:03:02]}  a5 {[%clk 0:02:46]} 11. Re1 {[%clk 0:03:02]}  h6 {[%clk 0:02:44]} 12. Qc2 {[%clk 0:03:02]}  Nh7 {[%clk 0:02:39]} 13. Rad1 {[%clk 0:03:00]}  Ng5 {[%clk 0:02:36]} 14. Nxg5 {[%clk 0:02:55]}  hxg5 {[%clk 0:02:36]} 15. d5 {[%clk 0:02:36]}  c5 {[%clk 0:02:30]} 16. Nb5 {[%clk 0:02:35]}  Ra6 {[%clk 0:02:21]} 17. Qd2 {[%clk 0:02:30]}  Bf6 {[%clk 0:02:10]} 18. Bf3 {[%clk 0:02:17]}  Kg7 {[%clk 0:01:56]} 19. Kg2 {[%clk 0:02:17]}  Rh8 {[%clk 0:01:54]} 20. Rh1 {[%clk 0:02:15]}  Be7 {[%clk 0:01:42]} 21. a4 {[%clk 0:02:13]}  f5 {[%clk 0:01:34]} 22. Qe2 {[%clk 0:01:56]}  b6 {[%clk 0:01:19]} 23. Bd2 {[%clk 0:01:39]}  Ra8 {[%clk 0:01:16]} 24. Qd3 {[%clk 0:01:19]}  f4 {[%clk 0:00:54]} 25. Bg4 {[%clk 0:01:10]}  Nf6 {[%clk 0:00:53]} 26. Bxc8 {[%clk 0:01:09]}  Qxc8 {[%clk 0:00:50]} 27. Qe2 {[%clk 0:01:00]}  Qd7 {[%clk 0:00:48]} 28. g4 {[%clk 0:00:55]}  Rh4 {[%clk 0:00:47]} 29. f3 {[%clk 0:00:49]}  Rah8 {[%clk 0:00:45]} 30. Be1 {[%clk 0:00:44]}  R4h7 {[%clk 0:00:43]} 31. Bf2 {[%clk 0:00:43]}  Bd8 {[%clk 0:00:41]} 32. Rh2 {[%clk 0:00:43]}  Ne8 {[%clk 0:00:38]} 33. Rdh1 {[%clk 0:00:43]}  Bf6 {[%clk 0:00:35]} 34. Qe1 {[%clk 0:00:32]}  Qe7 {[%clk 0:00:33]} 35. Qc3 {[%clk 0:00:21]}  Kf7 {[%clk 0:00:32]} 36. Qb3 {[%clk 0:00:21]}  Qd7 {[%clk 0:00:30]} 37. Nc3 {[%clk 0:00:19]}  Bd8 {[%clk 0:00:27]} 38. Kf1 {[%clk 0:00:11]}  Nf6 {[%clk 0:00:26]} 39. Ke2 {[%clk 0:00:09]}  Ne8 {[%clk 0:00:18]} 40. Kd3 {[%clk 0:00:09]}  Bc7 {[%clk 0:00:16]} 41. Nb5 {[%clk 0:00:08]}  Bd8 {[%clk 0:00:16]} 42. Nc3 {[%clk 0:00:08]}  Bc7 {[%clk 0:00:15]} 43. h4 {[%clk 0:00:09]}  gxh4 {[%clk 0:00:15]} 44. Rxh4 {[%clk 0:00:10]}  Rxh4 {[%clk 0:00:14]} 45. Rxh4 {[%clk 0:00:11]}  Rxh4 {[%clk 0:00:13]} 46. Bxh4 {[%clk 0:00:12]}  Bd8 {[%clk 0:00:08]} 47. Bxd8 {[%clk 0:00:10]}  Qxd8 {[%clk 0:00:08]} 48. Qb5 {[%clk 0:00:10]}  Nf6 {[%clk 0:00:07]} 49. Qc6 {[%clk 0:00:10]}  g5 {[%clk 0:00:06]} 50. Nb5 {[%clk 0:00:09]}  Ne8 {[%clk 0:00:06]} 51. Qb7+ {[%clk 0:00:08]}  Kg6 {[%clk 0:00:04]} 52. Na7 {[%clk 0:00:05]}  Nf6 {[%clk 0:00:02]} 53. Nc6 {[%clk 0:00:05]}  Qh8 {[%clk 0:00:02]} 54. Ne7+ {[%clk 0:00:04]}  Kh6 {[%clk 0:00:02]} 55. Nf5+ {[%clk 0:00:03]}  Kg6 {[%clk 0:00:02]} 56. Qe7 {[%clk 0:00:02]}  Ng8 {[%clk 0:00:01]} 57. Qe6+ {[%clk 0:00:02]}  Nf6 {[%clk 0:00:00]} 58. Qxd6 {[%clk 0:00:03]} 1-0


[Site "https://www.chess.com"]

[Event "Titled Tuesday Blitz August 22 Early 2023"]
[White "Andrade Truyol, Geiner Jose"]
[Black "Womacka, Mathias"]
[WhiteFideId "4431987"]
[BlackFideId "4611390"]
[WhiteElo "2216"]
[BlackElo "2456"]
[Result "0-1"]
[Round "2"]
[TimeControl "180+1"]
[Date "2023.08.22"]
[WhiteClock "0:00:09"]
[BlackClock "0:00:33"]
[Board "237"]

1. e4 {[%clk 0:03:00]}  c5 {[%clk 0:02:59]} 2. Nf3 {[%clk 0:03:00]}  d6 {[%clk 0:02:59]} 3. d4 {[%clk 0:02:59]}  cxd4 {[%clk 0:03:00]} 4. Nxd4 {[%clk 0:03:00]}  Nf6 {[%clk 0:03:00]} 5. Nc3 {[%clk 0:03:00]}  a6 {[%clk 0:03:01]} 6. Bc4 {[%clk 0:02:57]}  e6 {[%clk 0:03:01]} 7. Bb3 {[%clk 0:02:58]}  b5 {[%clk 0:03:01]} 8. O-O {[%clk 0:02:52]}  Be7 {[%clk 0:03:00]} 9. f4 {[%clk 0:02:51]}  O-O {[%clk 0:02:59]} 10. f5 {[%clk 0:02:51]}  b4 {[%clk 0:02:58]} 11. Na4 {[%clk 0:02:44]}  e5 {[%clk 0:02:58]} 12. Ne2 {[%clk 0:02:41]}  Bb7 {[%clk 0:02:57]} 13. Ng3 {[%clk 0:02:32]}  Nbd7 {[%clk 0:02:56]} 14. Qe2 {[%clk 0:02:27]}  Qc7 {[%clk 0:02:41]} 15. Kh1 {[%clk 0:02:25]}  a5 {[%clk 0:02:35]} 16. Bg5 {[%clk 0:02:21]}  Ba6 {[%clk 0:02:32]} 17. Qf3 {[%clk 0:02:15]}  Bxf1 {[%clk 0:02:32]} 18. Rxf1 {[%clk 0:02:16]}  h6 {[%clk 0:02:26]} 19. Be3 {[%clk 0:02:12]}  Qc6 {[%clk 0:02:19]} 20. h3 {[%clk 0:02:06]}  Bd8 {[%clk 0:02:00]} 21. Re1 {[%clk 0:01:42]}  Nb6 {[%clk 0:01:54]} 22. Bxb6 {[%clk 0:01:36]}  Bxb6 {[%clk 0:01:54]} 23. Nh5 {[%clk 0:01:35]}  Nxh5 {[%clk 0:01:51]} 24. Qxh5 {[%clk 0:01:31]}  Bd8 {[%clk 0:01:42]} 25. Qd1 {[%clk 0:01:21]}  Rc8 {[%clk 0:01:39]} 26. c3 {[%clk 0:01:20]}  Bg5 {[%clk 0:01:35]} 27. Bd5 {[%clk 0:01:03]}  Qc7 {[%clk 0:01:33]} 28. c4 {[%clk 0:01:02]}  Rb8 {[%clk 0:01:27]} 29. b3 {[%clk 0:01:03]}  Qe7 {[%clk 0:01:25]} 30. Rf1 {[%clk 0:01:00]}  Qf6 {[%clk 0:01:23]} 31. Rf3 {[%clk 0:01:00]}  Bf4 {[%clk 0:01:22]} 32. g3 {[%clk 0:01:00]}  Bg5 {[%clk 0:01:21]} 33. Kh2 {[%clk 0:01:00]}  h5 {[%clk 0:01:20]} 34. h4 {[%clk 0:00:59]}  Bh6 {[%clk 0:01:20]} 35. Nb2 {[%clk 0:00:55]}  Kh7 {[%clk 0:01:14]} 36. Nd3 {[%clk 0:00:54]}  Qe7 {[%clk 0:01:09]} 37. f6 {[%clk 0:00:52]}  gxf6 {[%clk 0:01:08]} 38. Rf5 {[%clk 0:00:51]}  Rg8 {[%clk 0:01:08]} 39. Qxh5 {[%clk 0:00:51]}  Rg6 {[%clk 0:01:07]} 40. g4 {[%clk 0:00:37]}  Rf8 {[%clk 0:00:54]} 41. Kh3 {[%clk 0:00:20]}  Kg7 {[%clk 0:00:54]} 42. g5 {[%clk 0:00:18]}  fxg5 {[%clk 0:00:53]} 43. hxg5 {[%clk 0:00:19]}  Rxg5 {[%clk 0:00:51]} 44. Rxg5+ {[%clk 0:00:18]}  Qxg5 {[%clk 0:00:48]} 45. Qxg5+ {[%clk 0:00:19]}  Bxg5 {[%clk 0:00:48]} 46. Kg4 {[%clk 0:00:19]}  Be3 {[%clk 0:00:47]} 47. Ne1 {[%clk 0:00:17]}  Rh8 {[%clk 0:00:46]} 48. Nf3 {[%clk 0:00:18]}  Rh1 {[%clk 0:00:44]} 49. Nh4 {[%clk 0:00:19]}  Kf6 {[%clk 0:00:38]} 50. Nf5 {[%clk 0:00:20]}  Bc5 {[%clk 0:00:38]} 51. Kf3 {[%clk 0:00:21]}  Ra1 {[%clk 0:00:36]} 52. Ng3 {[%clk 0:00:20]}  Rxa2 {[%clk 0:00:36]} 53. Nh5+ {[%clk 0:00:21]}  Kg5 {[%clk 0:00:36]} 54. Ng3 {[%clk 0:00:22]}  Rb2 {[%clk 0:00:35]} 55. Nf5 {[%clk 0:00:22]}  Rxb3+ {[%clk 0:00:35]} 56. Ke2 {[%clk 0:00:23]}  a4 {[%clk 0:00:35]} 57. Kd2 {[%clk 0:00:23]}  a3 {[%clk 0:00:35]} 58. Ne7 {[%clk 0:00:23]}  a2 {[%clk 0:00:34]} 59. Bxf7 {[%clk 0:00:09]}  a1=Q {[%clk 0:00:33]} 0-1


[Site "https://www.chess.com"]

[Event "Titled Tuesday Blitz August 22 Early 2023"]
[White "Lee, Addison"]
[Black "Maus7"]
[WhiteFideId "30924570"]
[WhiteElo "2215"]
[BlackElo "2456"]
[Result "0-1"]
[Round "2"]
[TimeControl "180+1"]
[Date "2023.08.22"]
[WhiteClock "0:02:11"]
[BlackClock "0:02:34"]
[Board "238"]

1. Nf3 {[%clk 0:03:00]}  Nf6 {[%clk 0:02:58]} 2. d4 {[%clk 0:03:00]}  d5 {[%clk 0:02:57]} 3. Bf4 {[%clk 0:03:00]}  e6 {[%clk 0:02:57]} 4. e3 {[%clk 0:03:00]}  Bd6 {[%clk 0:02:58]} 5. Bg3 {[%clk 0:03:00]}  O-O {[%clk 0:02:56]} 6. Bd3 {[%clk 0:03:00]}  c5 {[%clk 0:02:52]} 7. c3 {[%clk 0:02:59]}  Qc7 {[%clk 0:02:52]} 8. Nbd2 {[%clk 0:02:59]}  Nbd7 {[%clk 0:02:52]} 9. Qe2 {[%clk 0:02:59]}  Re8 {[%clk 0:02:49]} 10. O-O {[%clk 0:02:55]}  Bxg3 {[%clk 0:02:49]} 11. hxg3 {[%clk 0:02:55]}  e5 {[%clk 0:02:49]} 12. dxe5 {[%clk 0:02:54]}  Nxe5 {[%clk 0:02:50]} 13. Nxe5 {[%clk 0:02:53]}  Qxe5 {[%clk 0:02:51]} 14. Nf3 {[%clk 0:02:53]}  Qh5 {[%clk 0:02:52]} 15. Rfd1 {[%clk 0:02:46]}  Bg4 {[%clk 0:02:46]} 16. Bb5 {[%clk 0:02:42]}  Re6 {[%clk 0:02:40]} 17. Rd2 {[%clk 0:02:17]}  Ne4 {[%clk 0:02:35]} 18. Rdd1 {[%clk 0:02:11]}  Rh6 {[%clk 0:02:34]} 0-1


[Site "https://www.chess.com"]

[Event "Titled Tuesday Blitz August 22 Early 2023"]
[White "Sailer, Mike"]
[Black "Rosh Jain"]
[WhiteFideId "2012901"]
[BlackFideId "25789465"]
[WhiteElo "2208"]
[BlackElo "2453"]
[Result "1-0"]
[Round "2"]
[TimeControl "180+1"]
[Date "2023.08.22"]
[WhiteClock "0:01:04"]
[BlackClock "0:00:15"]
[Board "240"]

1. e4 {[%clk 0:03:00]}  e5 {[%clk 0:02:56]} 2. d4 {[%clk 0:02:59]}  exd4 {[%clk 0:02:55]} 3. Qxd4 {[%clk 0:03:00]}  Nc6 {[%clk 0:02:54]} 4. Qe3 {[%clk 0:03:00]}  Nf6 {[%clk 0:02:53]} 5. Nc3 {[%clk 0:03:00]}  Bb4 {[%clk 0:02:52]} 6. Bd2 {[%clk 0:03:01]}  O-O {[%clk 0:02:52]} 7. O-O-O {[%clk 0:03:00]}  Re8 {[%clk 0:02:43]} 8. Qg3 {[%clk 0:03:00]}  d6 {[%clk 0:02:39]} 9. Bd3 {[%clk 0:02:59]}  Be6 {[%clk 0:02:38]} 10. Nge2 {[%clk 0:02:52]}  a5 {[%clk 0:02:27]} 11. f4 {[%clk 0:02:41]}  Bxc3 {[%clk 0:02:08]} 12. Nxc3 {[%clk 0:02:40]}  Nb4 {[%clk 0:02:08]} 13. Kb1 {[%clk 0:02:33]}  a4 {[%clk 0:01:27]} 14. f5 {[%clk 0:02:26]}  Bd7 {[%clk 0:01:23]} 15. Bg5 {[%clk 0:02:18]}  a3 {[%clk 0:01:09]} 16. b3 {[%clk 0:02:06]}  Re5 {[%clk 0:01:07]} 17. h4 {[%clk 0:01:46]}  c6 {[%clk 0:00:53]} 18. h5 {[%clk 0:01:46]}  h6 {[%clk 0:00:43]} 19. Bxh6 {[%clk 0:01:45]}  Ne8 {[%clk 0:00:40]} 20. Bxg7 {[%clk 0:01:38]}  Nxg7 {[%clk 0:00:40]} 21. h6 {[%clk 0:01:38]}  Qf6 {[%clk 0:00:37]} 22. Rh4 {[%clk 0:01:26]}  Rc5 {[%clk 0:00:24]} 23. hxg7 {[%clk 0:01:16]}  Qxh4 {[%clk 0:00:14]} 24. Qxh4 {[%clk 0:01:04]}  Kxg7 {[%clk 0:00:15]} 1-0


[Site "https://www.chess.com"]

[Event "Titled Tuesday Blitz August 22 Early 2023"]
[White "Sliwicki, Damian"]
[Black "Larina, Maria"]
[WhiteFideId "1127128"]
[BlackFideId "24113182"]
[WhiteElo "2453"]
[BlackElo "2199"]
[Result "1-0"]
[Round "2"]
[TimeControl "180+1"]
[Date "2023.08.22"]
[WhiteClock "0:00:56"]
[BlackClock "0:01:20"]
[Board "241"]

1. e4 {[%clk 0:03:00]}  c6 {[%clk 0:02:59]} 2. Nc3 {[%clk 0:02:55]}  d5 {[%clk 0:03:00]} 3. Nf3 {[%clk 0:02:54]}  Bg4 {[%clk 0:02:59]} 4. h3 {[%clk 0:02:54]}  Bxf3 {[%clk 0:02:59]} 5. Qxf3 {[%clk 0:02:55]}  e6 {[%clk 0:03:00]} 6. d3 {[%clk 0:02:55]}  Nd7 {[%clk 0:02:59]} 7. Qg3 {[%clk 0:02:55]}  d4 {[%clk 0:02:58]} 8. Ne2 {[%clk 0:02:55]}  Qb6 {[%clk 0:02:57]} 9. c3 {[%clk 0:02:50]}  c5 {[%clk 0:02:45]} 10. Nf4 {[%clk 0:02:39]}  Ngf6 {[%clk 0:02:38]} 11. Be2 {[%clk 0:02:36]}  e5 {[%clk 0:01:57]} 12. Nh5 {[%clk 0:02:27]}  Nxh5 {[%clk 0:01:56]} 13. Bxh5 {[%clk 0:02:28]}  Nf6 {[%clk 0:01:52]} 14. Qxe5+ {[%clk 0:02:27]}  Be7 {[%clk 0:01:51]} 15. O-O {[%clk 0:02:11]}  O-O {[%clk 0:01:42]} 16. Qxe7 {[%clk 0:01:51]}  Nxh5 {[%clk 0:01:42]} 17. Qh4 {[%clk 0:01:41]}  Qg6 {[%clk 0:01:36]} 18. f4 {[%clk 0:01:34]}  Ng3 {[%clk 0:01:26]} 19. f5 {[%clk 0:01:33]}  Qd6 {[%clk 0:01:24]} 20. Bf4 {[%clk 0:01:22]}  Qb6 {[%clk 0:01:23]} 21. Qxg3 {[%clk 0:01:20]}  Qxb2 {[%clk 0:01:24]} 22. f6 {[%clk 0:01:17]}  g6 {[%clk 0:01:24]} 23. c4 {[%clk 0:01:12]}  Rfe8 {[%clk 0:01:22]} 24. Rab1 {[%clk 0:01:07]}  Qxa2 {[%clk 0:01:21]} 25. Rxb7 {[%clk 0:01:07]}  Qe2 {[%clk 0:01:21]} 26. Re1 {[%clk 0:01:03]}  Qxg2+ {[%clk 0:01:22]} 27. Kxg2 {[%clk 0:01:03]}  Rxe4 {[%clk 0:01:21]} 28. Rxe4 {[%clk 0:01:02]}  g5 {[%clk 0:01:21]} 29. Qxg5+ {[%clk 0:01:02]}  Kf8 {[%clk 0:01:21]} 30. Qh6+ {[%clk 0:01:00]}  Kg8 {[%clk 0:01:21]} 31. Ree7 {[%clk 0:01:00]}  Re8 {[%clk 0:01:20]} 32. Rxe8# {[%clk 0:00:56]} 1-0


[Site "https://www.chess.com"]

[Event "Titled Tuesday Blitz August 22 Early 2023"]
[White "Arencibia Monduy, Antonio"]
[Black "ZeGood_ZeBad_ZeUgly"]
[WhiteFideId "3507939"]
[WhiteElo "2451"]
[BlackElo "2199"]
[Result "0-1"]
[Round "2"]
[TimeControl "180+1"]
[Date "2023.08.22"]
[WhiteClock "0:00:12"]
[BlackClock "0:00:50"]
[Board "242"]

1. e4 {[%clk 0:03:00]}  e5 {[%clk 0:02:58]} 2. Nf3 {[%clk 0:03:01]}  Nc6 {[%clk 0:02:58]} 3. Bc4 {[%clk 0:03:01]}  Bc5 {[%clk 0:02:57]} 4. d3 {[%clk 0:03:01]}  Nf6 {[%clk 0:02:56]} 5. c3 {[%clk 0:03:01]}  d6 {[%clk 0:02:53]} 6. Bb3 {[%clk 0:03:01]}  a6 {[%clk 0:02:50]} 7. Nbd2 {[%clk 0:03:01]}  h6 {[%clk 0:02:49]} 8. h3 {[%clk 0:02:59]}  Qe7 {[%clk 0:02:46]} 9. Nf1 {[%clk 0:02:57]}  Be6 {[%clk 0:02:32]} 10. Ng3 {[%clk 0:02:56]}  g5 {[%clk 0:02:27]} 11. Bxe6 {[%clk 0:02:27]}  fxe6 {[%clk 0:02:28]} 12. d4 {[%clk 0:02:23]}  exd4 {[%clk 0:02:27]} 13. cxd4 {[%clk 0:02:23]}  Bb4+ {[%clk 0:02:27]} 14. Bd2 {[%clk 0:02:23]}  d5 {[%clk 0:02:20]} 15. e5 {[%clk 0:02:15]}  Ne4 {[%clk 0:02:19]} 16. O-O {[%clk 0:02:11]}  Nxd2 {[%clk 0:01:54]} 17. Nxd2 {[%clk 0:02:11]}  Nxd4 {[%clk 0:01:53]} 18. Nb3 {[%clk 0:01:49]}  Nxb3 {[%clk 0:01:50]} 19. Qxb3 {[%clk 0:01:49]}  O-O-O {[%clk 0:01:35]} 20. Rac1 {[%clk 0:01:48]}  Kb8 {[%clk 0:01:31]} 21. Nh5 {[%clk 0:01:30]}  Qf7 {[%clk 0:01:20]} 22. Qxb4 {[%clk 0:01:22]}  Qxh5 {[%clk 0:01:19]} 23. Qe7 {[%clk 0:01:13]}  c6 {[%clk 0:01:16]} 24. Qxe6 {[%clk 0:01:13]}  Qe8 {[%clk 0:01:16]} 25. Qf6 {[%clk 0:01:08]}  Qf8 {[%clk 0:01:06]} 26. Qg6 {[%clk 0:01:04]}  Qe8 {[%clk 0:01:04]} 27. Qxe8 {[%clk 0:00:28]}  Rhxe8 {[%clk 0:01:04]} 28. Rfe1 {[%clk 0:00:28]}  Re6 {[%clk 0:01:03]} 29. g3 {[%clk 0:00:27]}  Rf8 {[%clk 0:01:02]} 30. Rc2 {[%clk 0:00:24]}  h5 {[%clk 0:00:57]} 31. Kg2 {[%clk 0:00:23]}  g4 {[%clk 0:00:53]} 32. hxg4 {[%clk 0:00:23]}  hxg4 {[%clk 0:00:54]} 33. Rd2 {[%clk 0:00:23]}  Rf5 {[%clk 0:00:54]} 34. Rd4 {[%clk 0:00:24]}  Rfxe5 {[%clk 0:00:50]} 35. Rxe5 {[%clk 0:00:24]}  Rxe5 {[%clk 0:00:51]} 36. Rxg4 {[%clk 0:00:25]}  Re2 {[%clk 0:00:52]} 37. Rb4 {[%clk 0:00:22]}  c5 {[%clk 0:00:51]} 38. Rb3 {[%clk 0:00:21]}  c4 {[%clk 0:00:51]} 39. g4 {[%clk 0:00:12]}  cxb3 {[%clk 0:00:50]} 0-1


[Site "https://www.chess.com"]

[Event "Titled Tuesday Blitz August 22 Early 2023"]
[White "Balla, Tamas-Kristof"]
[Black "Tharushi, T H D Niklesha"]
[WhiteFideId "1208497"]
[BlackFideId "9918264"]
[WhiteElo "2448"]
[BlackElo "2167"]
[Result "1/2-1/2"]
[Round "2"]
[TimeControl "180+1"]
[Date "2023.08.22"]
[WhiteClock "0:00:03"]
[BlackClock "0:00:10"]
[Board "245"]

1. e4 {[%clk 0:03:00]}  c5 {[%clk 0:02:59]} 2. c3 {[%clk 0:03:01]}  Nf6 {[%clk 0:02:59]} 3. e5 {[%clk 0:03:00]}  Nd5 {[%clk 0:02:59]} 4. d4 {[%clk 0:03:00]}  cxd4 {[%clk 0:02:56]} 5. Nf3 {[%clk 0:03:01]}  e6 {[%clk 0:02:55]} 6. cxd4 {[%clk 0:03:00]}  d6 {[%clk 0:02:55]} 7. a3 {[%clk 0:02:59]}  Nc6 {[%clk 0:02:54]} 8. Bd3 {[%clk 0:02:59]}  dxe5 {[%clk 0:02:54]} 9. dxe5 {[%clk 0:03:00]}  Bc5 {[%clk 0:02:54]} 10. O-O {[%clk 0:02:57]}  Qb6 {[%clk 0:02:47]} 11. Qe2 {[%clk 0:02:42]}  Nd4 {[%clk 0:02:45]} 12. Nxd4 {[%clk 0:02:32]}  Bxd4 {[%clk 0:02:46]} 13. Bb5+ {[%clk 0:02:29]}  Bd7 {[%clk 0:02:43]} 14. Bxd7+ {[%clk 0:02:29]}  Kxd7 {[%clk 0:02:44]} 15. Rd1 {[%clk 0:02:29]}  Ke7 {[%clk 0:02:42]} 16. Bg5+ {[%clk 0:02:21]}  f6 {[%clk 0:02:41]} 17. exf6+ {[%clk 0:02:19]}  gxf6 {[%clk 0:02:42]} 18. Nc3 {[%clk 0:02:11]}  Nxc3 {[%clk 0:02:34]} 19. bxc3 {[%clk 0:01:58]}  Bxf2+ {[%clk 0:02:34]} 20. Kf1 {[%clk 0:01:34]}  fxg5 {[%clk 0:02:34]} 21. Rab1 {[%clk 0:01:30]}  Rhf8 {[%clk 0:02:15]} 22. Rxb6 {[%clk 0:01:07]}  Bxb6+ {[%clk 0:02:14]} 23. Ke1 {[%clk 0:01:07]}  Bf2+ {[%clk 0:01:57]} 24. Kd2 {[%clk 0:01:04]}  Rad8+ {[%clk 0:01:58]} 25. Kc2 {[%clk 0:01:03]}  Rxd1 {[%clk 0:01:58]} 26. Qxd1 {[%clk 0:01:02]}  Bc5 {[%clk 0:01:59]} 27. Qh5 {[%clk 0:01:00]}  Kd6 {[%clk 0:01:23]} 28. Qxg5 {[%clk 0:00:49]}  Bxa3 {[%clk 0:01:14]} 29. Kb3 {[%clk 0:00:27]}  Bc5 {[%clk 0:01:12]} 30. Qg7 {[%clk 0:00:20]}  Rf1 {[%clk 0:01:03]} 31. Qxh7 {[%clk 0:00:17]}  Rg1 {[%clk 0:00:59]} 32. g3 {[%clk 0:00:15]}  a5 {[%clk 0:00:53]} 33. Kc4 {[%clk 0:00:12]}  Re1 {[%clk 0:00:44]} 34. Qd3+ {[%clk 0:00:09]}  Kc6 {[%clk 0:00:44]} 35. Qf3+ {[%clk 0:00:09]}  Kb6 {[%clk 0:00:43]} 36. Qh5 {[%clk 0:00:06]}  Re4+ {[%clk 0:00:39]} 37. Kb3 {[%clk 0:00:05]}  a4+ {[%clk 0:00:38]} 38. Ka2 {[%clk 0:00:05]}  Kb5 {[%clk 0:00:38]} 39. Qf3 {[%clk 0:00:04]}  Rc4 {[%clk 0:00:15]} 40. Qxb7+ {[%clk 0:00:05]}  Bb6 {[%clk 0:00:15]} 41. Qd7+ {[%clk 0:00:05]}  Ka5 {[%clk 0:00:15]} 42. Qxe6 {[%clk 0:00:05]}  Rxc3 {[%clk 0:00:15]} 43. Qe1 {[%clk 0:00:06]}  Kb4 {[%clk 0:00:15]} 44. h4 {[%clk 0:00:05]}  Bd4 {[%clk 0:00:15]} 45. Kb1 {[%clk 0:00:04]}  Ka3 {[%clk 0:00:14]} 46. Qe7+ {[%clk 0:00:04]}  Bc5 {[%clk 0:00:13]} 47. Qe1 {[%clk 0:00:04]}  Kb3 {[%clk 0:00:13]} 48. Qd1+ {[%clk 0:00:05]}  Ka3 {[%clk 0:00:14]} 49. h5 {[%clk 0:00:04]}  Be3 {[%clk 0:00:13]} 50. Qd6+ {[%clk 0:00:02]}  Kb3 {[%clk 0:00:13]} 51. Qb8+ {[%clk 0:00:02]}  Kc4 {[%clk 0:00:13]} 52. Qc8+ {[%clk 0:00:02]}  Kb3 {[%clk 0:00:13]} 53. Qe6+ {[%clk 0:00:02]}  Kb4 {[%clk 0:00:11]} 54. Qd6+ {[%clk 0:00:03]}  Kb3 {[%clk 0:00:11]} 55. Qd5+ {[%clk 0:00:03]}  Ka3 {[%clk 0:00:10]} 56. Qd6+ {[%clk 0:00:03]}  Kb3 {[%clk 0:00:10]} 1/2-1/2


[Site "https://www.chess.com"]

[Event "Titled Tuesday Blitz August 22 Early 2023"]
[White "Sai Han Thiha"]
[Black "Benevides Demasi, Joao Otavio"]
[WhiteFideId "13012290"]
[BlackFideId "30916224"]
[WhiteElo "2447"]
[BlackElo "2163"]
[Result "1-0"]
[Round "2"]
[TimeControl "180+1"]
[Date "2023.08.22"]
[WhiteClock "0:00:39"]
[BlackClock "0:00:07"]
[Board "246"]

1. Nf3 {[%clk 0:03:00]}  d6 {[%clk 0:02:52]} 2. d4 {[%clk 0:03:00]}  g6 {[%clk 0:02:52]} 3. g3 {[%clk 0:02:56]}  Bg7 {[%clk 0:02:53]} 4. Bg2 {[%clk 0:02:57]}  Nf6 {[%clk 0:02:43]} 5. b3 {[%clk 0:02:56]}  O-O {[%clk 0:02:44]} 6. Bb2 {[%clk 0:02:56]}  c5 {[%clk 0:02:44]} 7. O-O {[%clk 0:02:52]}  Nc6 {[%clk 0:02:44]} 8. d5 {[%clk 0:02:47]}  Na5 {[%clk 0:02:44]} 9. c4 {[%clk 0:02:33]}  Re8 {[%clk 0:02:41]} 10. Nfd2 {[%clk 0:02:32]}  a6 {[%clk 0:02:35]} 11. e4 {[%clk 0:02:25]}  b5 {[%clk 0:02:34]} 12. Nc3 {[%clk 0:02:24]}  bxc4 {[%clk 0:02:33]} 13. bxc4 {[%clk 0:02:22]}  Rb8 {[%clk 0:02:32]} 14. Rb1 {[%clk 0:02:20]}  e6 {[%clk 0:02:27]} 15. Qc2 {[%clk 0:02:15]}  exd5 {[%clk 0:02:27]} 16. cxd5 {[%clk 0:02:03]}  Qc7 {[%clk 0:01:43]} 17. h3 {[%clk 0:01:52]}  h5 {[%clk 0:01:34]} 18. f4 {[%clk 0:01:50]}  c4 {[%clk 0:01:33]} 19. Kh1 {[%clk 0:01:42]}  Qc5 {[%clk 0:01:28]} 20. Nf3 {[%clk 0:01:29]}  Bd7 {[%clk 0:01:14]} 21. Ng5 {[%clk 0:01:24]}  h4 {[%clk 0:01:02]} 22. g4 {[%clk 0:01:24]}  Bxg4 {[%clk 0:00:54]} 23. hxg4 {[%clk 0:01:24]}  Nxg4 {[%clk 0:00:54]} 24. Nd1 {[%clk 0:01:19]}  c3 {[%clk 0:00:20]} 25. Bxc3 {[%clk 0:01:11]}  Rxb1 {[%clk 0:00:18]} 26. Qxb1 {[%clk 0:01:04]}  Bxc3 {[%clk 0:00:18]} 27. Qc2 {[%clk 0:00:50]}  Bd4 {[%clk 0:00:18]} 28. Qe2 {[%clk 0:00:48]}  Nf2+ {[%clk 0:00:16]} 29. Nxf2 {[%clk 0:00:47]}  Bxf2 {[%clk 0:00:16]} 30. Rxf2 {[%clk 0:00:45]}  Qc1+ {[%clk 0:00:15]} 31. Rf1 {[%clk 0:00:45]}  Qc5 {[%clk 0:00:15]} 32. f5 {[%clk 0:00:43]}  gxf5 {[%clk 0:00:14]} 33. Rxf5 {[%clk 0:00:42]}  Qc1+ {[%clk 0:00:14]} 34. Kh2 {[%clk 0:00:41]}  Nb7 {[%clk 0:00:07]} 35. Qh5 {[%clk 0:00:39]} 1-0


[Site "https://www.chess.com"]